[Event "GrandPrix_29.05"]
[Site "Chess.com"]
[Date "2020.05.29"]
[Round "4"]
[White "AsadliVugar"]
[Black "IljaJoke"]
[Result "1-0"]
[WhiteElo "2308"]
[BlackElo "2275"]
[TimeControl "600+2"]
[EndTime "11:00:28 PDT"]
[Termination "AsadliVugar won by resignation"]

1. e4 {[%clk 0:10:01.9]} 1... e5 {[%clk 0:10:00.5]} 2. Nf3 {[%clk 0:09:46.6]}
2... Nc6 {[%clk 0:10:00.5]} 3. Bc4 {[%clk 0:09:43.9]} 3... Bc5 {[%clk
0:09:59.6]} 4. c3 {[%clk 0:09:43.8]} 4... Nf6 {[%clk 0:09:59.5]} 5. d3 {[%clk
0:09:45]} 5... O-O {[%clk 0:09:59.4]} 6. O-O {[%clk 0:09:46]} 6... d5 {[%clk
0:09:59.9]} 7. exd5 {[%clk 0:09:47.3]} 7... Nxd5 {[%clk 0:10:01.5]} 8. a4 {[%clk
0:09:49]} 8... a6 {[%clk 0:09:53.9]} 9. a5 {[%clk 0:09:44.6]} 9... Bg4 {[%clk
0:09:23.2]} 10. Re1 {[%clk 0:09:36.5]} 10... b5 {[%clk 0:08:32.6]} 11. axb6
{[%clk 0:09:29.2]} 11... Nxb6 {[%clk 0:08:33.6]} 12. Bb3 {[%clk 0:09:28.8]}
12... Kh8 {[%clk 0:08:02.5]} 13. h3 {[%clk 0:08:28.2]} 13... Bh5 {[%clk
0:08:00.2]} 14. Be3 {[%clk 0:07:58.1]} 14... Bxe3 {[%clk 0:07:45.2]} 15. Rxe3
{[%clk 0:07:59]} 15... Nd5 {[%clk 0:07:36.9]} 16. Bxd5 {[%clk 0:07:47.5]} 16...
Qxd5 {[%clk 0:07:36.3]} 17. Nbd2 {[%clk 0:07:49]} 17... f5 {[%clk 0:05:46.7]}
18. Qa4 {[%clk 0:07:06.4]} 18... f4 {[%clk 0:04:35.6]} 19. Ree1 {[%clk
0:06:51.5]} 19... Rf6 {[%clk 0:04:30.2]} 20. Qe4 {[%clk 0:06:31.8]} 20... Rd6
{[%clk 0:03:21.1]} 21. Nxe5 {[%clk 0:04:52.7]} 21... Qxe4 {[%clk 0:03:11.9]} 22.
Rxe4 {[%clk 0:04:50]} 22... Nxe5 {[%clk 0:03:11.6]} 23. Rxe5 {[%clk 0:04:48.4]}
23... Rxd3 {[%clk 0:03:11.4]} 24. Ne4 {[%clk 0:04:31.5]} 24... Bg6 {[%clk
0:03:05.8]} 25. Nc5 {[%clk 0:04:27.5]} 25... Rd6 {[%clk 0:02:44.2]} 26. Re7
{[%clk 0:04:15.6]} 26... Rc6 {[%clk 0:02:27.5]} 27. b4 {[%clk 0:04:13.7]} 27...
Re8 {[%clk 0:02:00.7]} 28. Rxe8+ {[%clk 0:03:06.6]} 28... Bxe8 {[%clk
0:02:02.6]} 29. Rxa6 {[%clk 0:03:07.5]} 29... Rxa6 {[%clk 0:02:03.8]} 30. Nxa6
{[%clk 0:03:09.2]} 30... c6 {[%clk 0:02:05.4]} 31. Nc5 {[%clk 0:03:10.9]} 31...
g5 {[%clk 0:01:59.9]} 32. h4 {[%clk 0:02:55.4]} 32... gxh4 {[%clk 0:01:47]} 33.
f3 {[%clk 0:02:56.3]} 33... Kg7 {[%clk 0:01:45.3]} 34. Kh2 {[%clk 0:02:36.4]}
34... Kf6 {[%clk 0:01:40.2]} 35. Kh3 {[%clk 0:02:37.7]} 35... Bf7 {[%clk
0:00:51.6]} 36. Kxh4 {[%clk 0:02:27.8]} 36... Bc4 {[%clk 0:00:52.6]} 37. Ne4+
{[%clk 0:02:27.8]} 37... Ke5 {[%clk 0:00:48.1]} 38. Nd2 {[%clk 0:02:27.9]} 38...
Bd3 {[%clk 0:00:42.7]} 39. Kg5 {[%clk 0:02:28.8]} 39... Be2 {[%clk 0:00:35.5]}
40. Kg4 {[%clk 0:01:52.6]} 40... Bd3 {[%clk 0:00:35.6]} 41. Kh3 {[%clk 0:01:03]}
41... Bf5+ {[%clk 0:00:26.1]} 42. Kh2 {[%clk 0:01:04.4]} 42... c5 {[%clk
0:00:22.2]} 43. bxc5 {[%clk 0:00:45]} 43... Kd5 {[%clk 0:00:22.7]} 44. Ne4
{[%clk 0:00:46.7]} 44... h5 {[%clk 0:00:14.9]} 45. Kg1 {[%clk 0:00:44.4]} 45...
h4 {[%clk 0:00:10.4]} 46. Kf2 {[%clk 0:00:43.7]} 46... Bc8 {[%clk 0:00:10.1]}
47. c4+ {[%clk 0:00:42.5]} 47... Ke5 {[%clk 0:00:10.5]} 48. c6 {[%clk
0:00:37.9]} 48... Ba6 {[%clk 0:00:09.9]} 49. c7 {[%clk 0:00:37.2]} 49... Bc8
{[%clk 0:00:10.3]} 50. c5 {[%clk 0:00:37.9]} 50... Kd5 {[%clk 0:00:10.1]} 51.
Nd6 {[%clk 0:00:39.2]} 51... Bd7 {[%clk 0:00:07.4]} 52. c8=Q {[%clk 0:00:40.4]}
52... Bxc8 {[%clk 0:00:08.8]} 53. Nxc8 {[%clk 0:00:42]} 53... Kxc5 {[%clk
0:00:10.7]} 54. Ne7 {[%clk 0:00:43.7]} 54... Kd6 {[%clk 0:00:09.4]} 55. Ng6
{[%clk 0:00:43.7]} 1-0

[Event "GrandPrix_29.05"]
[Site "Chess.com"]
[Date "2020.05.29"]
[Round "4"]
[White "elohunter1999"]
[Black "Thor736"]
[Result "1-0"]
[WhiteElo "2173"]
[BlackElo "1996"]
[TimeControl "600+2"]
[EndTime "11:00:30 PDT"]
[Termination "elohunter1999 won on time"]

1. e4 {[%clk 0:10:01.9]} 1... c5 {[%clk 0:10:00]} 2. Nf3 {[%clk 0:10:02]} 2...
d6 {[%clk 0:10:01.2]} 3. d4 {[%clk 0:09:59.5]} 3... cxd4 {[%clk 0:10:01.9]} 4.
Nxd4 {[%clk 0:10:01.4]} 4... Nf6 {[%clk 0:10:02.8]} 5. Nc3 {[%clk 0:10:01.9]}
5... a6 {[%clk 0:10:03.5]} 6. Be3 {[%clk 0:09:59.3]} 6... e5 {[%clk 0:10:02.1]}
7. Nb3 {[%clk 0:09:59.6]} 7... Be6 {[%clk 0:10:02.6]} 8. f3 {[%clk 0:09:57.5]}
8... h5 {[%clk 0:10:03.3]} 9. Qd2 {[%clk 0:09:56.4]} 9... Nbd7 {[%clk
0:10:03.9]} 10. Nd5 {[%clk 0:09:54.8]} 10... Bxd5 {[%clk 0:10:04.6]} 11. exd5
{[%clk 0:09:56.7]} 11... g6 {[%clk 0:10:05]} 12. Be2 {[%clk 0:09:13]} 12... Bg7
{[%clk 0:10:04.9]} 13. Na5 {[%clk 0:09:12.4]} 13... Qc7 {[%clk 0:10:04.2]} 14.
Rc1 {[%clk 0:09:07.3]} 14... e4 {[%clk 0:09:54.2]} 15. f4 {[%clk 0:08:59.5]}
15... Ng4 {[%clk 0:09:53]} 16. Bxg4 {[%clk 0:08:50.4]} 16... hxg4 {[%clk
0:09:46.4]} 17. c4 {[%clk 0:08:38.1]} 17... Nc5 {[%clk 0:08:38.1]} 18. O-O
{[%clk 0:08:33.5]} 18... Nd3 {[%clk 0:08:28.2]} 19. Rc2 {[%clk 0:08:27.4]} 19...
f5 {[%clk 0:08:13.4]} 20. b4 {[%clk 0:08:24.5]} 20... b6 {[%clk 0:07:37.3]} 21.
Nc6 {[%clk 0:08:20.4]} 21... O-O {[%clk 0:07:03.7]} 22. Bd4 {[%clk 0:08:00.2]}
22... a5 {[%clk 0:06:25.3]} 23. Bxg7 {[%clk 0:07:10.8]} 23... Qxg7 {[%clk
0:06:20.3]} 24. b5 {[%clk 0:07:03.7]} 24... g5 {[%clk 0:05:52.8]} 25. fxg5
{[%clk 0:06:32.8]} 25... f4 {[%clk 0:05:52.6]} 26. Qe2 {[%clk 0:06:32.1]} 26...
f3 {[%clk 0:05:00.3]} 27. Qxe4 {[%clk 0:06:22.4]} 27... Nf4 {[%clk 0:05:01]} 28.
gxf3 {[%clk 0:05:58.9]} 28... Rae8 {[%clk 0:04:46.7]} 29. Qd4 {[%clk 0:05:45.9]}
29... Ne2+ {[%clk 0:04:11.8]} 30. Rxe2 {[%clk 0:05:44.7]} 30... Rxe2 {[%clk
0:04:13.3]} 31. Qxg7+ {[%clk 0:05:34]} 31... Kxg7 {[%clk 0:04:14.1]} 32. Nd4
{[%clk 0:05:35.9]} 32... Rxa2 {[%clk 0:03:23.8]} 33. Ne6+ {[%clk 0:05:34.1]}
33... Kg8 {[%clk 0:03:25.1]} 34. Nxf8 {[%clk 0:05:33.4]} 34... Kxf8 {[%clk
0:03:26.6]} 35. f4 {[%clk 0:03:48.1]} 35... a4 {[%clk 0:03:22.3]} 36. f5 {[%clk
0:03:31.2]} 36... a3 {[%clk 0:02:31.5]} 37. f6 {[%clk 0:03:22.1]} 37... Rc2
{[%clk 0:02:29.4]} 38. g6 {[%clk 0:01:23.6]} 38... Rxc4 {[%clk 0:02:28.8]} 39.
Kg2 {[%clk 0:01:09.6]} 39... Rc3 {[%clk 0:00:33.3]} 40. Re1 {[%clk 0:00:23.1]}
40... Rc8 {[%clk 0:00:05]} 41. Kg3 {[%clk 0:00:20.7]} 41... a2 {[%clk
0:00:04.2]} 42. Ra1 {[%clk 0:00:16.9]} 42... Rc2 {[%clk 0:00:04.3]} 43. Kxg4
{[%clk 0:00:16.6]} 43... Rxh2 {[%clk 0:00:05.4]} 44. Kf5 {[%clk 0:00:17.6]}
44... Re2 {[%clk 0:00:05.9]} 45. Rh1 {[%clk 0:00:16.6]} 45... Re5+ {[%clk
0:00:05.6]} 46. Kf4 {[%clk 0:00:16.8]} 46... Kg8 {[%clk 0:00:05.7]} 47. f7+
{[%clk 0:00:16.2]} 47... Kg7 {[%clk 0:00:06.9]} 48. Rh8 {[%clk 0:00:12.9]} 1-0

[Event "GrandPrix_29.05"]
[Site "Chess.com"]
[Date "2020.05.29"]
[Round "4"]
[White "wnstop"]
[Black "cukus"]
[Result "1-0"]
[WhiteElo "2248"]
[BlackElo "2174"]
[TimeControl "600+2"]
[EndTime "11:00:32 PDT"]
[Termination "wnstop won by resignation"]

1. e4 {[%clk 0:10:01.9]} 1... c6 {[%clk 0:09:58.7]} 2. d4 {[%clk 0:09:50.3]}
2... d5 {[%clk 0:09:59]} 3. e5 {[%clk 0:09:35.7]} 3... c5 {[%clk 0:09:59.4]} 4.
dxc5 {[%clk 0:09:33.7]} 4... e6 {[%clk 0:10:00.2]} 5. a3 {[%clk 0:09:30.7]} 5...
Bxc5 {[%clk 0:10:00.5]} 6. Qg4 {[%clk 0:09:26.8]} 6... Ne7 {[%clk 0:09:58.3]} 7.
Bd3 {[%clk 0:09:26.7]} 7... Ng6 {[%clk 0:09:41.6]} 8. Nf3 {[%clk 0:09:19.5]}
8... Nc6 {[%clk 0:09:33.3]} 9. Qg3 {[%clk 0:08:38.6]} 9... Bb6 {[%clk
0:08:51.3]} 10. b4 {[%clk 0:08:13]} 10... Nd4 {[%clk 0:08:27]} 11. Nbd2 {[%clk
0:06:58.8]} 11... Qc7 {[%clk 0:08:01.8]} 12. Ra2 {[%clk 0:04:23]} 12... Bd7
{[%clk 0:06:56.9]} 13. O-O {[%clk 0:03:58.8]} 13... O-O {[%clk 0:06:40.1]} 14.
Re1 {[%clk 0:02:42.7]} 14... Rac8 {[%clk 0:05:42.8]} 15. Qg4 {[%clk 0:01:24.3]}
15... Nxf3+ {[%clk 0:03:55]} 16. Nxf3 {[%clk 0:01:26.2]} 16... f5 {[%clk
0:03:18.1]} 17. Qh5 {[%clk 0:00:58.3]} 17... Ne7 {[%clk 0:01:48.9]} 18. Bg5
{[%clk 0:00:50]} 18... Be8 {[%clk 0:01:41.9]} 19. Qh4 {[%clk 0:00:32.5]} 19...
Ng6 {[%clk 0:01:39.9]} 20. Qh3 {[%clk 0:00:33.1]} 20... Qf7 {[%clk 0:01:18.7]}
21. Bd2 {[%clk 0:00:14.5]} 21... h6 {[%clk 0:01:18.8]} 22. Raa1 {[%clk
0:00:07.1]} 22... a6 {[%clk 0:01:19.1]} 23. a4 {[%clk 0:00:07]} 23... Bc7 {[%clk
0:00:44.7]} 24. b5 {[%clk 0:00:04.9]} 24... a5 {[%clk 0:00:42.7]} 25. Qg3 {[%clk
0:00:04.8]} 25... Bb6 {[%clk 0:00:37.3]} 26. h4 {[%clk 0:00:05.2]} 26... Ne7
{[%clk 0:00:36.8]} 27. Qh3 {[%clk 0:00:05.7]} 27... f4 {[%clk 0:00:35.2]} 28.
Qg4 {[%clk 0:00:04.9]} 28... Kh8 {[%clk 0:00:21.3]} 29. Rac1 {[%clk 0:00:05.8]}
29... Qh5 {[%clk 0:00:15.7]} 30. Qxe6 {[%clk 0:00:03.6]} 30... Bg6 {[%clk
0:00:12.7]} 31. Qxe7 {[%clk 0:00:04.1]} 31... Bc5 {[%clk 0:00:10]} 32. Qe6
{[%clk 0:00:02.9]} 32... Bf5 {[%clk 0:00:10.3]} 33. Bxf5 {[%clk 0:00:03.8]}
33... Rce8 {[%clk 0:00:07.8]} 34. Qg6 {[%clk 0:00:04.8]} 34... Qxf5 {[%clk
0:00:08.9]} 35. Qxf5 {[%clk 0:00:06.1]} 35... Rxf5 {[%clk 0:00:10.8]} 36. c4
{[%clk 0:00:07]} 36... d4 {[%clk 0:00:12.3]} 37. Re4 {[%clk 0:00:07.3]} 37... b6
{[%clk 0:00:08.7]} 38. Rxf4 {[%clk 0:00:07.8]} 38... Rxf4 {[%clk 0:00:04]} 39.
Bxf4 {[%clk 0:00:09.7]} 39... d3 {[%clk 0:00:05.6]} 40. Rd1 {[%clk 0:00:10.5]}
40... Rf8 {[%clk 0:00:04.6]} 41. g3 {[%clk 0:00:11.7]} 41... Rc8 {[%clk
0:00:04.2]} 42. Rxd3 {[%clk 0:00:12.2]} 42... Bb4 {[%clk 0:00:05.8]} 43. Rd4
{[%clk 0:00:12.1]} 43... Bc3 {[%clk 0:00:06.3]} 44. Re4 {[%clk 0:00:12.4]} 44...
g5 {[%clk 0:00:03.2]} 45. hxg5 {[%clk 0:00:13.2]} 45... hxg5 {[%clk 0:00:05.1]}
46. Nxg5 {[%clk 0:00:14.9]} 46... Kg7 {[%clk 0:00:06.6]} 47. e6 {[%clk
0:00:15.5]} 47... Kf6 {[%clk 0:00:08.1]} 48. e7 {[%clk 0:00:16.6]} 48... Bb4
{[%clk 0:00:08.1]} 49. e8=Q {[%clk 0:00:17]} 1-0

[Event "GrandPrix_29.05"]
[Site "Chess.com"]
[Date "2020.05.29"]
[Round "4"]
[White "viktorskliarov"]
[Black "Meri-Arabidze"]
[Result "1-0"]
[WhiteElo "2183"]
[BlackElo "1982"]
[TimeControl "600+2"]
[EndTime "11:00:33 PDT"]
[Termination "viktorskliarov won by resignation"]

1. e4 {[%clk 0:10:01.9]} 1... c5 {[%clk 0:09:59.3]} 2. Nf3 {[%clk 0:10:02.8]}
2... e6 {[%clk 0:10:00.2]} 3. d4 {[%clk 0:10:02.8]} 3... cxd4 {[%clk 0:10:01.5]}
4. Nxd4 {[%clk 0:10:04.7]} 4... Nc6 {[%clk 0:10:03]} 5. Nc3 {[%clk 0:10:05.7]}
5... a6 {[%clk 0:10:03.5]} 6. Be2 {[%clk 0:10:06.7]} 6... d6 {[%clk 0:10:02]} 7.
O-O {[%clk 0:10:07.4]} 7... Nf6 {[%clk 0:10:03.2]} 8. Be3 {[%clk 0:10:05.2]}
8... Be7 {[%clk 0:10:04.4]} 9. Kh1 {[%clk 0:10:05.7]} 9... O-O {[%clk 0:10:04]}
10. f4 {[%clk 0:10:06.7]} 10... Qc7 {[%clk 0:09:45.4]} 11. Qe1 {[%clk
0:10:06.4]} 11... Nxd4 {[%clk 0:09:46.2]} 12. Bxd4 {[%clk 0:10:07.1]} 12... b5
{[%clk 0:09:47.8]} 13. a3 {[%clk 0:10:07.9]} 13... Bb7 {[%clk 0:09:48.5]} 14.
Qg3 {[%clk 0:10:08.8]} 14... g6 {[%clk 0:09:49.3]} 15. Bd3 {[%clk 0:09:00.5]}
15... e5 {[%clk 0:08:50.3]} 16. fxe5 {[%clk 0:08:21.8]} 16... Nh5 {[%clk
0:08:50.5]} 17. Qf2 {[%clk 0:08:22.5]} 17... dxe5 {[%clk 0:08:49.3]} 18. Bb6
{[%clk 0:08:23.5]} 18... Qc8 {[%clk 0:08:27.1]} 19. Nd5 {[%clk 0:07:46.8]} 19...
Bxd5 {[%clk 0:08:23.3]} 20. exd5 {[%clk 0:07:48.7]} 20... f5 {[%clk 0:07:52.1]}
21. a4 {[%clk 0:05:41.9]} 21... b4 {[%clk 0:07:36.1]} 22. c4 {[%clk 0:05:11.7]}
22... bxc3 {[%clk 0:07:12.6]} 23. Rac1 {[%clk 0:05:07]} 23... Nf4 {[%clk
0:06:28.2]} 24. Bb1 {[%clk 0:05:06.1]} 24... Qb7 {[%clk 0:05:11.4]} 25. Rxc3
{[%clk 0:03:31.8]} 25... Nxd5 {[%clk 0:04:58.8]} 26. Ba2 {[%clk 0:03:31.2]}
26... Kh8 {[%clk 0:04:58.2]} 27. Bxd5 {[%clk 0:02:07.1]} 27... Qxd5 {[%clk
0:05:00.1]} 28. Rc7 {[%clk 0:02:08.1]} 28... Bf6 {[%clk 0:04:08.5]} 29. Qe3
{[%clk 0:01:32.5]} 29... Rac8 {[%clk 0:03:34.2]} 30. Qh6 {[%clk 0:01:22.4]}
30... Qg8 {[%clk 0:03:19.5]} 31. Rfc1 {[%clk 0:00:57.5]} 31... Rxc7 {[%clk
0:03:12]} 32. Rxc7 {[%clk 0:00:53.6]} 32... Bg7 {[%clk 0:03:13.2]} 33. Qh4
{[%clk 0:00:43.1]} 33... Qb3 {[%clk 0:01:31.1]} 34. Qe7 {[%clk 0:00:30.8]} 34...
Rg8 {[%clk 0:01:31.9]} 35. a5 {[%clk 0:00:23]} 35... Qxb2 {[%clk 0:01:24.1]} 36.
h4 {[%clk 0:00:23.8]} 36... Qb1+ {[%clk 0:01:19.9]} 37. Bg1 {[%clk 0:00:24]}
37... f4 {[%clk 0:01:08.6]} 38. h5 {[%clk 0:00:13.3]} 38... gxh5 {[%clk
0:01:09.8]} 39. Rd7 {[%clk 0:00:10.6]} 39... Qf5 {[%clk 0:01:06]} 40. Bc5 {[%clk
0:00:10.1]} 40... f3 {[%clk 0:00:57.7]} 41. Qf7 {[%clk 0:00:04]} 41... fxg2+
{[%clk 0:00:54.2]} 42. Kh2 {[%clk 0:00:05.4]} 42... Qxf7 {[%clk 0:00:36.1]} 43.
Rxf7 {[%clk 0:00:05.9]} 43... e4 {[%clk 0:00:37.8]} 44. Be3 {[%clk 0:00:04.6]}
44... Be5+ {[%clk 0:00:36.6]} 45. Kg1 {[%clk 0:00:05.9]} 45... h4 {[%clk
0:00:35.3]} 46. Rf5 {[%clk 0:00:04.9]} 46... Bg3 {[%clk 0:00:22.3]} 47. Bd4+
{[%clk 0:00:05]} 1-0

[Event "GrandPrix_29.05"]
[Site "Chess.com"]
[Date "2020.05.29"]
[Round "4"]
[White "ploky25"]
[Black "DrVelja"]
[Result "1-0"]
[WhiteElo "2160"]
[BlackElo "2124"]
[TimeControl "600+2"]
[EndTime "11:00:34 PDT"]
[Termination "ploky25 won on time"]

1. d4 {[%clk 0:10:01.9]} 1... Nf6 {[%clk 0:10:00.8]} 2. c4 {[%clk 0:10:01.9]}
2... g6 {[%clk 0:10:01.5]} 3. Nc3 {[%clk 0:10:01.3]} 3... d5 {[%clk 0:09:54.9]}
4. cxd5 {[%clk 0:09:54.7]} 4... Nxd5 {[%clk 0:09:56.8]} 5. Bd2 {[%clk
0:09:53.9]} 5... Bg7 {[%clk 0:09:51.7]} 6. e4 {[%clk 0:09:53.8]} 6... Nb6 {[%clk
0:09:53]} 7. Be3 {[%clk 0:09:51.4]} 7... O-O {[%clk 0:09:54.4]} 8. Bb5 {[%clk
0:09:45.1]} 8... Be6 {[%clk 0:09:54.1]} 9. Nge2 {[%clk 0:08:40.1]} 9... Nc4
{[%clk 0:09:09.5]} 10. Bxc4 {[%clk 0:08:05.3]} 10... Bxc4 {[%clk 0:09:11.4]} 11.
Rc1 {[%clk 0:07:45.1]} 11... Nc6 {[%clk 0:07:28.2]} 12. Qa4 {[%clk 0:06:50.3]}
12... Ba6 {[%clk 0:06:02.9]} 13. O-O {[%clk 0:05:22.2]} 13... e5 {[%clk
0:05:23.6]} 14. Rfd1 {[%clk 0:05:16.9]} 14... Bxe2 {[%clk 0:02:31.7]} 15. Nxe2
{[%clk 0:05:15.2]} 15... exd4 {[%clk 0:02:32.7]} 16. Nxd4 {[%clk 0:05:08.3]}
16... Nxd4 {[%clk 0:02:33.7]} 17. Bxd4 {[%clk 0:05:07.1]} 17... Bxd4 {[%clk
0:02:34.7]} 18. Rxd4 {[%clk 0:05:02.1]} 18... Qf6 {[%clk 0:02:25.2]} 19. Rxc7
{[%clk 0:04:38.7]} 19... Rac8 {[%clk 0:02:04.2]} 20. Rxc8 {[%clk 0:03:33.5]}
20... Rxc8 {[%clk 0:02:06.1]} 21. g3 {[%clk 0:02:32.1]} 21... Qf3 {[%clk
0:01:33.8]} 22. Rd1 {[%clk 0:01:46.5]} 22... b5 {[%clk 0:01:01.6]} 23. Qb3
{[%clk 0:01:41.1]} 23... Qxb3 {[%clk 0:00:54.9]} 24. axb3 {[%clk 0:01:41.2]}
24... Rc2 {[%clk 0:00:56.8]} 25. Rd5 {[%clk 0:00:53.4]} 25... a6 {[%clk
0:00:50]} 26. Rd6 {[%clk 0:00:54.1]} 26... a5 {[%clk 0:00:30.8]} 27. Rd5 {[%clk
0:00:45.1]} 27... b4 {[%clk 0:00:30.8]} 28. Rxa5 {[%clk 0:00:45.7]} 28... Rxb2
{[%clk 0:00:32.4]} 29. Rb5 {[%clk 0:00:46.6]} 29... Rxb3 {[%clk 0:00:33.1]} 30.
g4 {[%clk 0:00:43.5]} 30... Rb1+ {[%clk 0:00:23]} 31. Kg2 {[%clk 0:00:44]} 31...
h6 {[%clk 0:00:20.8]} 32. h4 {[%clk 0:00:44.4]} 32... b3 {[%clk 0:00:18.2]} 33.
Kg3 {[%clk 0:00:41.8]} 33... Kf8 {[%clk 0:00:09.5]} 34. f3 {[%clk 0:00:38]}
34... Ke7 {[%clk 0:00:08.9]} 35. Kf4 {[%clk 0:00:38.3]} 35... Kd6 {[%clk
0:00:06.4]} 36. Ke3 {[%clk 0:00:31.1]} 36... b2 {[%clk 0:00:06.2]} 37. Kf4
{[%clk 0:00:28.4]} 37... Kc6 {[%clk 0:00:05.1]} 38. Rb8 {[%clk 0:00:27.9]} 38...
Kc5 {[%clk 0:00:05.7]} 39. Ke5 {[%clk 0:00:26.8]} 39... Rf1 {[%clk 0:00:02.7]}
40. Rxb2 {[%clk 0:00:25.2]} 40... Rxf3 {[%clk 0:00:04.2]} 41. Rc2+ {[%clk
0:00:24.6]} 41... Kb6 {[%clk 0:00:05.8]} 42. g5 {[%clk 0:00:19.4]} 42... h5
{[%clk 0:00:03.8]} 43. Kd6 {[%clk 0:00:10.4]} 43... Rf4 {[%clk 0:00:05.2]} 44.
Ke7 {[%clk 0:00:09.9]} 44... Rxe4+ {[%clk 0:00:03.1]} 45. Kxf7 {[%clk
0:00:10.5]} 45... Rxh4 {[%clk 0:00:04.7]} 46. Kxg6 {[%clk 0:00:11.3]} 46... Rh1
{[%clk 0:00:06.3]} 47. Kh7 {[%clk 0:00:10.7]} 47... h4 {[%clk 0:00:07.7]} 48. g6
{[%clk 0:00:11.6]} 1-0

[Event "GrandPrix_29.05"]
[Site "Chess.com"]
[Date "2020.05.29"]
[Round "4"]
[White "Gabix_94"]
[Black "GeorgMeier"]
[Result "0-1"]
[WhiteElo "2458"]
[BlackElo "2650"]
[TimeControl "600+2"]
[EndTime "11:00:46 PDT"]
[Termination "GeorgMeier won by resignation"]

1. d4 {[%clk 0:10:00.4]} 1... e6 {[%clk 0:10:00.5]} 2. Nf3 {[%clk 0:09:58.2]}
2... Nf6 {[%clk 0:10:01.3]} 3. e3 {[%clk 0:09:55.4]} 3... d5 {[%clk 0:09:56.9]}
4. Bd3 {[%clk 0:09:53.8]} 4... c5 {[%clk 0:09:54.2]} 5. b3 {[%clk 0:09:53.4]}
5... Nc6 {[%clk 0:09:52.5]} 6. a3 {[%clk 0:09:52.3]} 6... b6 {[%clk 0:09:41.5]}
7. Bb2 {[%clk 0:09:50.5]} 7... Bb7 {[%clk 0:09:41.7]} 8. O-O {[%clk 0:09:50]}
8... Bd6 {[%clk 0:09:42.6]} 9. Nbd2 {[%clk 0:09:39]} 9... O-O {[%clk 0:09:40.2]}
10. Re1 {[%clk 0:09:30.4]} 10... Qc7 {[%clk 0:08:09]} 11. dxc5 {[%clk
0:08:40.3]} 11... Bxc5 {[%clk 0:08:05.3]} 12. b4 {[%clk 0:08:04.9]} 12... Be7
{[%clk 0:08:02.1]} 13. e4 {[%clk 0:07:54.2]} 13... Rad8 {[%clk 0:07:38.5]} 14.
Qe2 {[%clk 0:07:50.6]} 14... a5 {[%clk 0:07:11.5]} 15. b5 {[%clk 0:07:04]} 15...
Nb8 {[%clk 0:06:46.9]} 16. e5 {[%clk 0:06:31.8]} 16... Nfd7 {[%clk 0:05:59.1]}
17. Nf1 {[%clk 0:05:58.2]} 17... Nc5 {[%clk 0:05:47.2]} 18. Ng3 {[%clk 0:05:58]}
18... Nbd7 {[%clk 0:05:38.2]} 19. Nd4 {[%clk 0:05:21.6]} 19... Rc8 {[%clk
0:04:54]} 20. Rad1 {[%clk 0:05:01.5]} 20... Rfe8 {[%clk 0:04:26.1]} 21. Ba1
{[%clk 0:04:24.2]} 21... Bf8 {[%clk 0:03:47.3]} 22. h4 {[%clk 0:03:59.2]} 22...
h6 {[%clk 0:02:05.4]} 23. Nh5 {[%clk 0:03:47]} 23... Ne4 {[%clk 0:01:56.6]} 24.
Nc6 {[%clk 0:02:51.6]} 24... Bxc6 {[%clk 0:01:01.6]} 25. bxc6 {[%clk 0:02:53.5]}
25... Nxe5 {[%clk 0:01:00.3]} 26. Bxe4 {[%clk 0:02:16.1]} 26... dxe4 {[%clk
0:01:01.4]} 27. Qxe4 {[%clk 0:02:11.9]} 27... Ng6 {[%clk 0:00:59.4]} 28. Qg4
{[%clk 0:01:40.2]} 28... Qxc6 {[%clk 0:00:42.8]} 29. Bxg7 {[%clk 0:01:24.1]}
29... Bxg7 {[%clk 0:00:40.3]} 30. Nxg7 {[%clk 0:01:26]} 30... Kxg7 {[%clk
0:00:42.2]} 31. h5 {[%clk 0:01:25.1]} 31... Qxc2 {[%clk 0:00:18.4]} 32. hxg6
{[%clk 0:01:09.4]} 32... Qxg6 {[%clk 0:00:18.9]} 33. Qd4+ {[%clk 0:01:10.4]}
33... Kh7 {[%clk 0:00:18.1]} 34. Qxb6 {[%clk 0:01:10.8]} 34... Rg8 {[%clk
0:00:12.4]} 35. g3 {[%clk 0:01:11.6]} 35... Rc3 {[%clk 0:00:13.4]} 36. Re3
{[%clk 0:00:59]} 36... Rxe3 {[%clk 0:00:13.9]} 37. Qxe3 {[%clk 0:01:00.9]} 37...
Qf5 {[%clk 0:00:14.8]} 38. Rd7 {[%clk 0:00:55.8]} 38... h5 {[%clk 0:00:12.2]}
39. Qd4 {[%clk 0:00:46.3]} 39... Rg4 {[%clk 0:00:09.8]} 40. Qa7 {[%clk 0:00:44]}
40... Rg7 {[%clk 0:00:10.9]} 41. Qd4 {[%clk 0:00:36.1]} 41... e5 {[%clk
0:00:11.6]} 42. Qa4 {[%clk 0:00:21.5]} 42... Rg4 {[%clk 0:00:08.7]} 43. Qc6
{[%clk 0:00:12.7]} 43... h4 {[%clk 0:00:09.3]} 44. Qb7 {[%clk 0:00:12.4]} 44...
Rg7 {[%clk 0:00:10.2]} 45. Qh1 {[%clk 0:00:11]} 45... Qb1+ {[%clk 0:00:09.2]}
46. Kh2 {[%clk 0:00:12.2]} 46... hxg3+ {[%clk 0:00:08.7]} 47. fxg3 {[%clk
0:00:14.1]} 47... Qxh1+ {[%clk 0:00:09.7]} 48. Kxh1 {[%clk 0:00:16]} 48... Kg6
{[%clk 0:00:11]} 49. Rd5 {[%clk 0:00:15.5]} 49... Kf5 {[%clk 0:00:11.3]} 50. Kg2
{[%clk 0:00:15.5]} 50... a4 {[%clk 0:00:12.8]} 51. Ra5 {[%clk 0:00:15.9]} 51...
Rg4 {[%clk 0:00:13.9]} 52. Kf3 {[%clk 0:00:17.3]} 52... Rc4 {[%clk 0:00:14.1]}
53. Kf2 {[%clk 0:00:15.6]} 53... f6 {[%clk 0:00:15.5]} 54. Rb5 {[%clk
0:00:16.3]} 54... Rc2+ {[%clk 0:00:16.1]} 55. Kg1 {[%clk 0:00:16.6]} 55... Rc3
{[%clk 0:00:18]} 0-1